Workbook

Sheet NGC7793
B3: ρ(r) = ρ0sech^8( r/ r_c)
A6: M(R) =4πρ0,r_c^3 ·I(u) | C6: u = R/r_c | D6: I(u) = Integrale de 0 à u de ( x^2sech^8(x)dx | H6: V_TURI(R) = Racine (G·M(R)/R)
H8: G= | I8: =4.3009*POWER(10,-6) -> 4.3009e-06 | J8: 10^-6,KPC,(Km/s)^2/Mo
A9: NGC7793 | B9: R_core≈R_max/2= | C9: =A50 -> 3.85 | D9: V_obs(R_core)= | E9: =B50 -> 112
B10: M_totale= | C10: V_obs^2(R_core).R_core/G= | E10: =(E9*E9*C9/I8) -> 1.122890558e+10 | F10: Mo | G10: I(infini)= | H10: 0.0648738184
G11: M(R) = racine(G,M(R)/R)
B12: r_c=R_core= | C12: =C9 -> 3.85 | D12: ρ0=M_tot/4.π.r_c^3.I(infini)= | E12: =E10/(POWER(C12,3)*4*3.14159*H10) -> 241366105.7 | F12: Mo/kpc^3 | G12: π= | H12: 3.14159
A14: R | B14: V_obs | C14: Incer V_obs | D14: u=R/r-c | E14: I(U) par table | F14: M(R) | G14: V_TURI | H14: Erreur % | J14: calculs intermediaires de I(u)
A15: 0.11 | B15: 9.1 | C15: 8.5 | D15: =A15/$C$12 -> 0.02857142857 | E15: =N15*K15+O15*M15 -> 8.5512e-06 | F15: =4*$H$12*$E$12*POWER($C$12,3)*E15 -> 1480113.546 | G15: =POWER($I$8*F15/A15,0.5) -> 7.60730531 | H15: =ROUND(ABS((B15-G15)/B15)*100,2) -> 16.4 | J15: =INDEX(Integrale!$H$3:$H$502,MATCH('NGC7793'!D15,Integrale!$H$3:$H$502,1)) -> 0.02 | K15: =INDEX(Integrale!$I$3:$I$502,MATCH('NGC7793'!D15,Integrale!$H$3:$H$502,1)) -> 2.9964e-06 | L15: =INDEX(Integrale!$H$3:$H$502,MATCH('NGC7793'!D15,Integrale!$H$3:$H$502,1)+1) -> 0.03 | M15: =INDEX(Integrale!$I$3:$I$502,MATCH('NGC7793'!D15,Integrale!$H$3:$H$502,1)+1) -> 9.477e-06 | N15: =(L15-D15)/(L15-J15) -> 0.1428571429 | O15: =(D15-J15)/(L15-J15) -> 0.8571428571
A16: 0.14 | B16: 17.6 | C16: 7.4 | D16: =A16/$C$12 -> 0.03636363636 | E16: =N16*K16+O16*M16 -> 1.738878182e-05 | F16: =4*$H$12*$E$12*POWER($C$12,3)*E16 -> 3009796.463 | G16: 9.615773354 | H16: 45.36 | J16: =INDEX(Integrale!$H$3:$H$502,MATCH('NGC7793'!D16,Integrale!$H$3:$H$502,1)) -> 0.03 | K16: =INDEX(Integrale!$I$3:$I$502,MATCH('NGC7793'!D16,Integrale!$H$3:$H$502,1)) -> 9.477e-06 | L16: =INDEX(Integrale!$H$3:$H$502,MATCH('NGC7793'!D16,Integrale!$H$3:$H$502,1)+1) -> 0.04 | M16: =INDEX(Integrale!$I$3:$I$502,MATCH('NGC7793'!D16,Integrale!$H$3:$H$502,1)+1) -> 2.19098e-05 | N16: =(L16-D16)/(L16-J16) -> 0.3636363636 | O16: 0.6363636364
A17: 0.17 | B17: 19.3 | C17: 7.4 | D17: 0.04415584416 | E17: 3.035642857e-05 | F17: 5254345.721 | G17: 11.5296078 | H17: 40.26 | J17: =INDEX(Integrale!$H$3:$H$502,MATCH('NGC7793'!D17,Integrale!$H$3:$H$502,1)) -> 0.04 | K17: =INDEX(Integrale!$I$3:$I$502,MATCH('NGC7793'!D17,Integrale!$H$3:$H$502,1)) -> 2.19098e-05 | L17: =INDEX(Integrale!$H$3:$H$502,MATCH('NGC7793'!D17,Integrale!$H$3:$H$502,1)+1) -> 0.05 | M17: =INDEX(Integrale!$I$3:$I$502,MATCH('NGC7793'!D17,Integrale!$H$3:$H$502,1)+1) -> 4.22345e-05 | N17: 0.5844155844 | O17: 0.4155844156
A18: 0.21 | B18: 24.8 | C18: 6.4 | D18: 0.05454545455 | E18: 5.592472727e-05 | F18: 9679921.693 | G18: 14.08010674 | H18: 43.23 | J18: =INDEX(Integrale!$H$3:$H$502,MATCH('NGC7793'!D18,Integrale!$H$3:$H$502,1)) -> 0.05 | K18: =INDEX(Integrale!$I$3:$I$502,MATCH('NGC7793'!D18,Integrale!$H$3:$H$502,1)) -> 4.22345e-05 | L18: =INDEX(Integrale!$H$3:$H$502,MATCH('NGC7793'!D18,Integrale!$H$3:$H$502,1)+1) -> 0.06 | M18: =INDEX(Integrale!$I$3:$I$502,MATCH('NGC7793'!D18,Integrale!$H$3:$H$502,1)+1) -> 7.2353e-05 | N18: 0.5454545455 | O18: 0.4545454545
A19: 0.24 | B19: 30 | C19: 7.2 | D19: 0.06233766234 | E19: 8.211687792e-05 | F19: 14213479.2 | G19: 15.95968263 | H19: 46.8 | J19: =INDEX(Integrale!$H$3:$H$502,MATCH('NGC7793'!D19,Integrale!$H$3:$H$502,1)) -> 0.06 | K19: =INDEX(Integrale!$I$3:$I$502,MATCH('NGC7793'!D19,Integrale!$H$3:$H$502,1)) -> 7.2353e-05 | L19: =INDEX(Integrale!$H$3:$H$502,MATCH('NGC7793'!D19,Integrale!$H$3:$H$502,1)+1) -> 0.07 | M19: =INDEX(Integrale!$I$3:$I$502,MATCH('NGC7793'!D19,Integrale!$H$3:$H$502,1)+1) -> 0.0001141207 | N19: 0.7662337662 | O19: 0.2337662338
A20: 0.28 | B20: 35 | C20: 7.3 | D20: 0.07272727273 | E20: 0.0001291798545 | F20: 22359534.63 | G20: 18.53241586 | H20: 47.05 | J20: =INDEX(Integrale!$H$3:$H$502,MATCH('NGC7793'!D20,Integrale!$H$3:$H$502,1)) -> 0.07 | K20: =INDEX(Integrale!$I$3:$I$502,MATCH('NGC7793'!D20,Integrale!$H$3:$H$502,1)) -> 0.0001141207 | L20: =INDEX(Integrale!$H$3:$H$502,MATCH('NGC7793'!D20,Integrale!$H$3:$H$502,1)+1) -> 0.08 | M20: =INDEX(Integrale!$I$3:$I$502,MATCH('NGC7793'!D20,Integrale!$H$3:$H$502,1)+1) -> 0.0001693376 | N20: 0.7272727273 | O20: 0.2727272727
A21: 0.32 | B21: 38.3 | C21: 7.6 | D21: 0.08311688312 | E21: 0.0001912812364 | F21: 33108563.59 | G21: 21.09477284 | H21: 44.92 | J21: =INDEX(Integrale!$H$3:$H$502,MATCH('NGC7793'!D21,Integrale!$H$3:$H$502,1)) -> 0.08 | K21: =INDEX(Integrale!$I$3:$I$502,MATCH('NGC7793'!D21,Integrale!$H$3:$H$502,1)) -> 0.0001693376 | L21: =INDEX(Integrale!$H$3:$H$502,MATCH('NGC7793'!D21,Integrale!$H$3:$H$502,1)+1) -> 0.09 | M21: =INDEX(Integrale!$I$3:$I$502,MATCH('NGC7793'!D21,Integrale!$H$3:$H$502,1)+1) -> 0.0002397401 | N21: 0.6883116883 | O21: 0.3116883117
A22: 0.35 | B22: 42.7 | C22: 8.8 | D22: =A22/$C$12 -> 0.09090909091 | E22: =N22*K22+O22*M22 -> 0.0002476722182 | F22: =4*$H$12*$E$12*POWER($C$12,3)*E22 -> 42869188.54 | G22: =POWER($I$8*F22/A22,0.5) -> 22.95188091 | H22: =ROUND(ABS((B22-G22)/B22)*100,2) -> 46.25 | J22: =INDEX(Integrale!$H$3:$H$502,MATCH('NGC7793'!D22,Integrale!$H$3:$H$502,1)) -> 0.09 | K22: =INDEX(Integrale!$I$3:$I$502,MATCH('NGC7793'!D22,Integrale!$H$3:$H$502,1)) -> 0.0002397401 | L22: =INDEX(Integrale!$H$3:$H$502,MATCH('NGC7793'!D22,Integrale!$H$3:$H$502,1)+1) -> 0.1 | M22: =INDEX(Integrale!$I$3:$I$502,MATCH('NGC7793'!D22,Integrale!$H$3:$H$502,1)+1) -> 0.0003269934 | N22: =(L22-D22)/(L22-J22) -> 0.9090909091 | O22: =(D22-J22)/(L22-J22) -> 0.09090909091
A23: 0.39 | B23: 47 | C23: 5.3 | D23: 0.1012987013 | E23: 0.0003407193481 | F23: 58974567.59 | G23: 25.50232356 | H23: 45.74 | J23: =INDEX(Integrale!$H$3:$H$502,MATCH('NGC7793'!D23,Integrale!$H$3:$H$502,1)) -> 0.1 | K23: =INDEX(Integrale!$I$3:$I$502,MATCH('NGC7793'!D23,Integrale!$H$3:$H$502,1)) -> 0.0003269934 | L23: =INDEX(Integrale!$H$3:$H$502,MATCH('NGC7793'!D23,Integrale!$H$3:$H$502,1)+1) -> 0.11 | M23: =INDEX(Integrale!$I$3:$I$502,MATCH('NGC7793'!D23,Integrale!$H$3:$H$502,1)+1) -> 0.0004326832 | N23: 0.8701298701 | O23: 0.1298701299
A24: 0.42 | B24: 49.8 | C24: 5.6 | D24: =A24/$C$12 -> 0.1090909091 | E24: =N24*K24+O24*M24 -> 0.0004230750364 | F24: =4*$H$12*$E$12*POWER($C$12,3)*E24 -> 73229382.1 | G24: =POWER($I$8*F24/A24,0.5) -> 27.38405208 | H24: =ROUND(ABS((B24-G24)/B24)*100,2) -> 45.01 | J24: =INDEX(Integrale!$H$3:$H$502,MATCH('NGC7793'!D24,Integrale!$H$3:$H$502,1)) -> 0.1 | K24: =INDEX(Integrale!$I$3:$I$502,MATCH('NGC7793'!D24,Integrale!$H$3:$H$502,1)) -> 0.0003269934 | L24: =INDEX(Integrale!$H$3:$H$502,MATCH('NGC7793'!D24,Integrale!$H$3:$H$502,1)+1) -> 0.11 | M24: =INDEX(Integrale!$I$3:$I$502,MATCH('NGC7793'!D24,Integrale!$H$3:$H$502,1)+1) -> 0.0004326832 | N24: =(L24-D24)/(L24-J24) -> 0.09090909091 | O24: =(D24-J24)/(L24-J24) -> 0.9090909091
A25: 0.46 | B25: 52.2 | C25: 6.2 | D25: 0.1194805195 | E25: 0.0005517835532 | F25: 95507333.65 | G25: 29.8826506 | H25: 42.75 | J25: =INDEX(Integrale!$H$3:$H$502,MATCH('NGC7793'!D25,Integrale!$H$3:$H$502,1)) -> 0.11 | K25: =INDEX(Integrale!$I$3:$I$502,MATCH('NGC7793'!D25,Integrale!$H$3:$H$502,1)) -> 0.0004326832 | L25: =INDEX(Integrale!$H$3:$H$502,MATCH('NGC7793'!D25,Integrale!$H$3:$H$502,1)+1) -> 0.12 | M25: =INDEX(Integrale!$I$3:$I$502,MATCH('NGC7793'!D25,Integrale!$H$3:$H$502,1)+1) -> 0.0005583096 | N25: 0.05194805195 | O25: 0.9480519481
A26: 0.49 | B26: 53.4 | C26: 6.3 | D26: 0.1272727273 | E26: 0.0006651975273 | F26: 115137977.2 | G26: 31.79002944 | H26: 40.47 | J26: =INDEX(Integrale!$H$3:$H$502,MATCH('NGC7793'!D26,Integrale!$H$3:$H$502,1)) -> 0.12 | K26: =INDEX(Integrale!$I$3:$I$502,MATCH('NGC7793'!D26,Integrale!$H$3:$H$502,1)) -> 0.0005583096 | L26: =INDEX(Integrale!$H$3:$H$502,MATCH('NGC7793'!D26,Integrale!$H$3:$H$502,1)+1) -> 0.13 | M26: =INDEX(Integrale!$I$3:$I$502,MATCH('NGC7793'!D26,Integrale!$H$3:$H$502,1)+1) -> 0.0007052805 | N26: 0.2727272727 | O26: 0.7272727273
A27: 0.53 | B27: 54.6 | C27: 5.9 | D27: 0.1376623377 | E27: 0.0008352529026 | F27: 144572590.4 | G27: 34.25190407 | H27: 37.27 | J27: =INDEX(Integrale!$H$3:$H$502,MATCH('NGC7793'!D27,Integrale!$H$3:$H$502,1)) -> 0.13 | K27: =INDEX(Integrale!$I$3:$I$502,MATCH('NGC7793'!D27,Integrale!$H$3:$H$502,1)) -> 0.0007052805 | L27: =INDEX(Integrale!$H$3:$H$502,MATCH('NGC7793'!D27,Integrale!$H$3:$H$502,1)+1) -> 0.14 | M27: =INDEX(Integrale!$I$3:$I$502,MATCH('NGC7793'!D27,Integrale!$H$3:$H$502,1)+1) -> 0.0008749055 | N27: 0.2337662338 | O27: 0.7662337662
A28: 0.56 | B28: 55.5 | C28: 6.9 | D28: =A28/$C$12 -> 0.1454545455 | E28: =N28*K28+O28*M28 -> 0.0009804428273 | F28: =4*$H$12*$E$12*POWER($C$12,3)*E28 -> 169703282.5 | G28: =POWER($I$8*F28/A28,0.5) -> 36.10195997 | H28: =ROUND(ABS((B28-G28)/B28)*100,2) -> 34.95 | J28: =INDEX(Integrale!$H$3:$H$502,MATCH('NGC7793'!D28,Integrale!$H$3:$H$502,1)) -> 0.14 | K28: =INDEX(Integrale!$I$3:$I$502,MATCH('NGC7793'!D28,Integrale!$H$3:$H$502,1)) -> 0.0008749055 | L28: =INDEX(Integrale!$H$3:$H$502,MATCH('NGC7793'!D28,Integrale!$H$3:$H$502,1)+1) -> 0.15 | M28: =INDEX(Integrale!$I$3:$I$502,MATCH('NGC7793'!D28,Integrale!$H$3:$H$502,1)+1) -> 0.0010683906 | N28: =(L28-D28)/(L28-J28) -> 0.4545454545 | O28: =(D28-J28)/(L28-J28) -> 0.5454545455
A29: 0.6 | B29: 55.9 | C29: 7.5 | D29: 0.1558441558 | E29: 0.001196052327 | F29: 207022786.4 | G29: 38.52238098 | H29: 31.09 | J29: =INDEX(Integrale!$H$3:$H$502,MATCH('NGC7793'!D29,Integrale!$H$3:$H$502,1)) -> 0.15 | K29: =INDEX(Integrale!$I$3:$I$502,MATCH('NGC7793'!D29,Integrale!$H$3:$H$502,1)) -> 0.0010683906 | L29: =INDEX(Integrale!$H$3:$H$502,MATCH('NGC7793'!D29,Integrale!$H$3:$H$502,1)+1) -> 0.16 | M29: =INDEX(Integrale!$I$3:$I$502,MATCH('NGC7793'!D29,Integrale!$H$3:$H$502,1)+1) -> 0.001286834 | N29: 0.4155844156 | O29: 0.5844155844
A30: 0.63 | B30: 58.3 | C30: 7.4 | D30: 0.1636363636 | E30: 0.001375702364 | F30: 238118124.2 | G30: 40.31861676 | H30: 30.84 | J30: =INDEX(Integrale!$H$3:$H$502,MATCH('NGC7793'!D30,Integrale!$H$3:$H$502,1)) -> 0.16 | K30: =INDEX(Integrale!$I$3:$I$502,MATCH('NGC7793'!D30,Integrale!$H$3:$H$502,1)) -> 0.001286834 | L30: =INDEX(Integrale!$H$3:$H$502,MATCH('NGC7793'!D30,Integrale!$H$3:$H$502,1)+1) -> 0.17 | M30: =INDEX(Integrale!$I$3:$I$502,MATCH('NGC7793'!D30,Integrale!$H$3:$H$502,1)+1) -> 0.001531222 | N30: 0.6363636364 | O30: 0.3636363636
A31: 0.66 | B31: 59.3 | C31: 6.3 | D31: 0.1714285714 | E31: 0.001569965357 | F31: 271742795.3 | G31: 42.08106514 | H31: 29.04 | J31: =INDEX(Integrale!$H$3:$H$502,MATCH('NGC7793'!D31,Integrale!$H$3:$H$502,1)) -> 0.17 | K31: =INDEX(Integrale!$I$3:$I$502,MATCH('NGC7793'!D31,Integrale!$H$3:$H$502,1)) -> 0.001531222 | L31: =INDEX(Integrale!$H$3:$H$502,MATCH('NGC7793'!D31,Integrale!$H$3:$H$502,1)+1) -> 0.18 | M31: =INDEX(Integrale!$I$3:$I$502,MATCH('NGC7793'!D31,Integrale!$H$3:$H$502,1)+1) -> 0.0018024255 | N31: 0.8571428571 | O31: 0.1428571429
A32: 0.7 | B32: 59.5 | C32: 6.7 | D32: 0.1818181818 | E32: 0.001856747664 | F32: 321381486.6 | G32: 44.43662639 | H32: 25.32 | J32: =INDEX(Integrale!$H$3:$H$502,MATCH('NGC7793'!D32,Integrale!$H$3:$H$502,1)) -> 0.18 | K32: =INDEX(Integrale!$I$3:$I$502,MATCH('NGC7793'!D32,Integrale!$H$3:$H$502,1)) -> 0.0018024255 | L32: =INDEX(Integrale!$H$3:$H$502,MATCH('NGC7793'!D32,Integrale!$H$3:$H$502,1)+1) -> 0.19 | M32: =INDEX(Integrale!$I$3:$I$502,MATCH('NGC7793'!D32,Integrale!$H$3:$H$502,1)+1) -> 0.0021011974 | N32: 0.8181818182 | O32: 0.1818181818
A33: 0.87 | B33: 59.1 | C33: 5.1 | D33: 0.225974026 | E33: 0.00341607131 | F33: 591282325.3 | G33: 54.06516027 | H33: 8.52 | J33: =INDEX(Integrale!$H$3:$H$502,MATCH('NGC7793'!D33,Integrale!$H$3:$H$502,1)) -> 0.22 | K33: =INDEX(Integrale!$I$3:$I$502,MATCH('NGC7793'!D33,Integrale!$H$3:$H$502,1)) -> 0.0031686489 | L33: =INDEX(Integrale!$H$3:$H$502,MATCH('NGC7793'!D33,Integrale!$H$3:$H$502,1)+1) -> 0.23 | M33: =INDEX(Integrale!$I$3:$I$502,MATCH('NGC7793'!D33,Integrale!$H$3:$H$502,1)+1) -> 0.0035828125 | N33: 0.4025974026 | O33: 0.5974025974
A34: 1.05 | B34: 62.6 | C34: 5.5 | D34: 0.2727272727 | E34: 0.005687335073 | F34: 984411741.1 | G34: 63.49995468 | H34: 1.44 | J34: =INDEX(Integrale!$H$3:$H$502,MATCH('NGC7793'!D34,Integrale!$H$3:$H$502,1)) -> 0.27 | K34: =INDEX(Integrale!$I$3:$I$502,MATCH('NGC7793'!D34,Integrale!$H$3:$H$502,1)) -> 0.0055343666 | L34: =INDEX(Integrale!$H$3:$H$502,MATCH('NGC7793'!D34,Integrale!$H$3:$H$502,1)+1) -> 0.28 | M34: =INDEX(Integrale!$I$3:$I$502,MATCH('NGC7793'!D34,Integrale!$H$3:$H$502,1)+1) -> 0.006095251 | N34: 0.7272727273 | O34: 0.2727272727
A35: 1.22 | B35: 65.6 | C35: 4.8 | D35: 0.3168831169 | E35: 0.008408878692 | F35: 1455479378 | G35: 71.63129214 | H35: 9.19 | J35: =INDEX(Integrale!$H$3:$H$502,MATCH('NGC7793'!D35,Integrale!$H$3:$H$502,1)) -> 0.31 | K35: =INDEX(Integrale!$I$3:$I$502,MATCH('NGC7793'!D35,Integrale!$H$3:$H$502,1)) -> 0.0079467677 | L35: =INDEX(Integrale!$H$3:$H$502,MATCH('NGC7793'!D35,Integrale!$H$3:$H$502,1)+1) -> 0.32 | M35: =INDEX(Integrale!$I$3:$I$502,MATCH('NGC7793'!D35,Integrale!$H$3:$H$502,1)+1) -> 0.0086181365 | N35: 0.3116883117 | O35: 0.6883116883
A36: 1.4 | B36: 70.7 | C36: 4.6 | D36: 0.3636363636 | E36: 0.01183998055 | F36: 2049363316 | G36: 79.34601748 | H36: 12.23 | J36: =INDEX(Integrale!$H$3:$H$502,MATCH('NGC7793'!D36,Integrale!$H$3:$H$502,1)) -> 0.36 | K36: =INDEX(Integrale!$I$3:$I$502,MATCH('NGC7793'!D36,Integrale!$H$3:$H$502,1)) -> 0.0115524392 | L36: =INDEX(Integrale!$H$3:$H$502,MATCH('NGC7793'!D36,Integrale!$H$3:$H$502,1)+1) -> 0.37 | M36: =INDEX(Integrale!$I$3:$I$502,MATCH('NGC7793'!D36,Integrale!$H$3:$H$502,1)+1) -> 0.0123431779 | N36: 0.6363636364 | O36: 0.3636363636
A37: 1.57 | B37: 73.9 | C37: 4 | D37: 0.4077922078 | E37: 0.01550867417 | F37: 2684371633 | G37: 85.75336415 | H37: 16.04 | J37: =INDEX(Integrale!$H$3:$H$502,MATCH('NGC7793'!D37,Integrale!$H$3:$H$502,1)) -> 0.4 | K37: =INDEX(Integrale!$I$3:$I$502,MATCH('NGC7793'!D37,Integrale!$H$3:$H$502,1)) -> 0.0148341297 | L37: =INDEX(Integrale!$H$3:$H$502,MATCH('NGC7793'!D37,Integrale!$H$3:$H$502,1)+1) -> 0.41 | M37: =INDEX(Integrale!$I$3:$I$502,MATCH('NGC7793'!D37,Integrale!$H$3:$H$502,1)+1) -> 0.0156997951 | N37: 0.2207792208 | O37: 0.7792207792
A38: 1.75 | B38: 78.5 | C38: 4.2 | D38: 0.4545454545 | E38: 0.01972560942 | F38: 3414274219 | G38: 91.60303172 | H38: 16.69 | J38: =INDEX(Integrale!$H$3:$H$502,MATCH('NGC7793'!D38,Integrale!$H$3:$H$502,1)) -> 0.45 | K38: =INDEX(Integrale!$I$3:$I$502,MATCH('NGC7793'!D38,Integrale!$H$3:$H$502,1)) -> 0.0193032886 | L38: =INDEX(Integrale!$H$3:$H$502,MATCH('NGC7793'!D38,Integrale!$H$3:$H$502,1)+1) -> 0.46 | M38: =INDEX(Integrale!$I$3:$I$502,MATCH('NGC7793'!D38,Integrale!$H$3:$H$502,1)+1) -> 0.0202323944 | N38: 0.5454545455 | O38: 0.4545454545
A39: 1.92 | B39: 82.4 | C39: 4.6 | D39: 0.4987012987 | E39: 0.02389549739 | F39: 4136033466 | G39: 96.25450837 | H39: 16.81 | J39: =INDEX(Integrale!$H$3:$H$502,MATCH('NGC7793'!D39,Integrale!$H$3:$H$502,1)) -> 0.49 | K39: =INDEX(Integrale!$I$3:$I$502,MATCH('NGC7793'!D39,Integrale!$H$3:$H$502,1)) -> 0.0230649017 | L39: =INDEX(Integrale!$H$3:$H$502,MATCH('NGC7793'!D39,Integrale!$H$3:$H$502,1)+1) -> 0.5 | M39: =INDEX(Integrale!$I$3:$I$502,MATCH('NGC7793'!D39,Integrale!$H$3:$H$502,1)+1) -> 0.0240194669 | N39: 0.1298701299 | O39: 0.8701298701
A40: 2.1 | B40: 87.1 | C40: 4.9 | D40: 0.5454545455 | E40: 0.02837486352 | F40: 4911359792 | G40: 100.2930642 | H40: 15.15 | J40: =INDEX(Integrale!$H$3:$H$502,MATCH('NGC7793'!D40,Integrale!$H$3:$H$502,1)) -> 0.54 | K40: =INDEX(Integrale!$I$3:$I$502,MATCH('NGC7793'!D40,Integrale!$H$3:$H$502,1)) -> 0.0278534477 | L40: =INDEX(Integrale!$H$3:$H$502,MATCH('NGC7793'!D40,Integrale!$H$3:$H$502,1)+1) -> 0.55 | M40: =INDEX(Integrale!$I$3:$I$502,MATCH('NGC7793'!D40,Integrale!$H$3:$H$502,1)+1) -> 0.0288093767 | N40: 0.4545454545 | O40: 0.5454545455
A41: 2.27 | B41: 89.6 | C41: 5.4 | D41: 0.5896103896 | E41: 0.03255016408 | F41: 5634055895 | G41: 103.3183161 | H41: 15.31 | J41: =INDEX(Integrale!$H$3:$H$502,MATCH('NGC7793'!D41,Integrale!$H$3:$H$502,1)) -> 0.58 | K41: =INDEX(Integrale!$I$3:$I$502,MATCH('NGC7793'!D41,Integrale!$H$3:$H$502,1)) -> 0.0316515125 | L41: =INDEX(Integrale!$H$3:$H$502,MATCH('NGC7793'!D41,Integrale!$H$3:$H$502,1)+1) -> 0.59 | M41: =INDEX(Integrale!$I$3:$I$502,MATCH('NGC7793'!D41,Integrale!$H$3:$H$502,1)+1) -> 0.0325865959 | N41: 0.03896103896 | O41: 0.961038961
A42: 2.45 | B42: 94.9 | C42: 5.7 | D42: 0.6363636364 | E42: 0.03680240653 | F42: 6370069747 | G42: 105.7471628 | H42: 11.43 | J42: =INDEX(Integrale!$H$3:$H$502,MATCH('NGC7793'!D42,Integrale!$H$3:$H$502,1)) -> 0.63 | K42: =INDEX(Integrale!$I$3:$I$502,MATCH('NGC7793'!D42,Integrale!$H$3:$H$502,1)) -> 0.0362383877 | L42: =INDEX(Integrale!$H$3:$H$502,MATCH('NGC7793'!D42,Integrale!$H$3:$H$502,1)+1) -> 0.64 | M42: =INDEX(Integrale!$I$3:$I$502,MATCH('NGC7793'!D42,Integrale!$H$3:$H$502,1)+1) -> 0.037124703 | N42: 0.3636363636 | O42: 0.6363636364
A43: 2.62 | B43: 98.1 | C43: 5 | D43: 0.6805194805 | E43: 0.04058299149 | F43: 7024445157 | G43: 107.3828781 | H43: 9.46 | J43: =INDEX(Integrale!$H$3:$H$502,MATCH('NGC7793'!D43,Integrale!$H$3:$H$502,1)) -> 0.68 | K43: =INDEX(Integrale!$I$3:$I$502,MATCH('NGC7793'!D43,Integrale!$H$3:$H$502,1)) -> 0.040540476 | L43: =INDEX(Integrale!$H$3:$H$502,MATCH('NGC7793'!D43,Integrale!$H$3:$H$502,1)+1) -> 0.69 | M43: =INDEX(Integrale!$I$3:$I$502,MATCH('NGC7793'!D43,Integrale!$H$3:$H$502,1)+1) -> 0.0413588991 | N43: 0.9480519481 | O43: 0.05194805195
A44: 2.79 | B44: 99.3 | C44: 5.7 | D44: 0.7246753247 | E44: 0.04407368715 | F44: 7628644092 | G44: 108.4429311 | H44: 9.21 | J44: =INDEX(Integrale!$H$3:$H$502,MATCH('NGC7793'!D44,Integrale!$H$3:$H$502,1)) -> 0.72 | K44: =INDEX(Integrale!$I$3:$I$502,MATCH('NGC7793'!D44,Integrale!$H$3:$H$502,1)) -> 0.0437207705 | L44: =INDEX(Integrale!$H$3:$H$502,MATCH('NGC7793'!D44,Integrale!$H$3:$H$502,1)+1) -> 0.73 | M44: =INDEX(Integrale!$I$3:$I$502,MATCH('NGC7793'!D44,Integrale!$H$3:$H$502,1)+1) -> 0.04447562 | N44: 0.5324675325 | O44: 0.4675324675
A45: 2.97 | B45: 98.6 | C45: 7.2 | D45: 0.7714285714 | E45: 0.04742086036 | F45: 8208000955 | G45: 109.0235067 | H45: 10.57 | J45: =INDEX(Integrale!$H$3:$H$502,MATCH('NGC7793'!D45,Integrale!$H$3:$H$502,1)) -> 0.77 | K45: =INDEX(Integrale!$I$3:$I$502,MATCH('NGC7793'!D45,Integrale!$H$3:$H$502,1)) -> 0.0473252771 | L45: =INDEX(Integrale!$H$3:$H$502,MATCH('NGC7793'!D45,Integrale!$H$3:$H$502,1)+1) -> 0.78 | M45: =INDEX(Integrale!$I$3:$I$502,MATCH('NGC7793'!D45,Integrale!$H$3:$H$502,1)+1) -> 0.0479943599 | N45: 0.8571428571 | O45: 0.1428571429
A46: 3.16 | B46: 101 | C46: 8.7 | D46: 0.8207792208 | E46: 0.05054040194 | F46: 8747957422 | G46: 109.1162574 | H46: 8.04 | J46: =INDEX(Integrale!$H$3:$H$502,MATCH('NGC7793'!D46,Integrale!$H$3:$H$502,1)) -> 0.82 | K46: =INDEX(Integrale!$I$3:$I$502,MATCH('NGC7793'!D46,Integrale!$H$3:$H$502,1)) -> 0.0504950998 | L46: =INDEX(Integrale!$H$3:$H$502,MATCH('NGC7793'!D46,Integrale!$H$3:$H$502,1)+1) -> 0.83 | M46: =INDEX(Integrale!$I$3:$I$502,MATCH('NGC7793'!D46,Integrale!$H$3:$H$502,1)+1) -> 0.0510764772 | N46: 0.9220779221 | O46: 0.07792207792
A47: 3.33 | B47: 103 | C47: 9.4 | D47: 0.8649350649 | E47: 0.05296998331 | F47: 9168489781 | G47: 108.8194329 | H47: 5.65 | J47: =INDEX(Integrale!$H$3:$H$502,MATCH('NGC7793'!D47,Integrale!$H$3:$H$502,1)) -> 0.86 | K47: =INDEX(Integrale!$I$3:$I$502,MATCH('NGC7793'!D47,Integrale!$H$3:$H$502,1)) -> 0.0527169267 | L47: =INDEX(Integrale!$H$3:$H$502,MATCH('NGC7793'!D47,Integrale!$H$3:$H$502,1)+1) -> 0.87 | M47: =INDEX(Integrale!$I$3:$I$502,MATCH('NGC7793'!D47,Integrale!$H$3:$H$502,1)+1) -> 0.0532296993 | N47: 0.5064935065 | O47: 0.4935064935
A48: 3.51 | B48: 107 | C48: 9.1 | D48: 0.9116883117 | E48: 0.05518900113 | F48: 9552576030 | G48: 108.1898119 | H48: 1.11 | J48: =INDEX(Integrale!$H$3:$H$502,MATCH('NGC7793'!D48,Integrale!$H$3:$H$502,1)) -> 0.91 | K48: =INDEX(Integrale!$I$3:$I$502,MATCH('NGC7793'!D48,Integrale!$H$3:$H$502,1)) -> 0.0551161169 | L48: =INDEX(Integrale!$H$3:$H$502,MATCH('NGC7793'!D48,Integrale!$H$3:$H$502,1)+1) -> 0.92 | M48: =INDEX(Integrale!$I$3:$I$502,MATCH('NGC7793'!D48,Integrale!$H$3:$H$502,1)+1) -> 0.0555478158 | N48: 0.8311688312 | O48: 0.1688311688
A49: 3.68 | B49: 114 | C49: 7.4 | D49: 0.9558441558 | E49: 0.05696912621 | F49: 9860695037 | G49: 107.3518485 | H49: 5.83 | J49: =INDEX(Integrale!$H$3:$H$502,MATCH('NGC7793'!D49,Integrale!$H$3:$H$502,1)) -> 0.95 | K49: =INDEX(Integrale!$I$3:$I$502,MATCH('NGC7793'!D49,Integrale!$H$3:$H$502,1)) -> 0.0567517415 | L49: =INDEX(Integrale!$H$3:$H$502,MATCH('NGC7793'!D49,Integrale!$H$3:$H$502,1)+1) -> 0.96 | M49: =INDEX(Integrale!$I$3:$I$502,MATCH('NGC7793'!D49,Integrale!$H$3:$H$502,1)+1) -> 0.0571237109 | N49: 0.4155844156 | O49: 0.5844155844
A50: 3.85 | B50: 112 | C50: 8.1 | D50: =A50/$C$12 -> 1 | E50: =N50*K50+O50*M50 -> 0.0584738086 | F50: =4*$H$12*$E$12*POWER($C$12,3)*E50 -> 1.012113811e+10 | G50: =POWER($I$8*F50/A50,0.5) -> 106.3320001 | H50: =ROUND(ABS((B50-G50)/B50)*100,2) -> 5.06 | J50: =INDEX(Integrale!$H$3:$H$502,MATCH('NGC7793'!D50,Integrale!$H$3:$H$502,1)) -> 1 | K50: =INDEX(Integrale!$I$3:$I$502,MATCH('NGC7793'!D50,Integrale!$H$3:$H$502,1)) -> 0.0584738086 | L50: =INDEX(Integrale!$H$3:$H$502,MATCH('NGC7793'!D50,Integrale!$H$3:$H$502,1)+1) -> 1.01 | M50: =INDEX(Integrale!$I$3:$I$502,MATCH('NGC7793'!D50,Integrale!$H$3:$H$502,1)+1) -> 0.0587786248 | N50: =(L50-D50)/(L50-J50) -> 1 | O50: =(D50-J50)/(L50-J50) -> 0
G51: Erreur moy | H51: =ROUND(AVERAGE(H15:H50),2) -> 24.18
B52: Précision= | C52: =ROUND(MAX(0,100-H51),2) -> 75.82 | D52: %
A54: R | B54: V_Obs | C54: Incer V_Obs | D54: V_TURI | E54: A=(V_obs-V_TURI)^2 | F54: A/Incer V_Obs^2
A55: =A15 -> 0.11 | B55: =B15 -> 9.1 | C55: =C15 -> 8.5 | D55: =ROUND(G15,2) -> 7.61 | E55: =ROUND(POWER((B55-D55),2),2) -> 2.22 | F55: =ROUND(E55/POWER(C55,2),2) -> 0.03 | G55: 1
A56: =A16 -> 0.14 | B56: =B16 -> 17.6 | C56: =C16 -> 7.4 | D56: 9.62 | E56: =ROUND(POWER((B56-D56),2),2) -> 63.68 | F56: =ROUND(E56/POWER(C56,2),2) -> 1.16 | G56: =1+G55 -> 2
A57: =A17 -> 0.17 | B57: =B17 -> 19.3 | C57: =C17 -> 7.4 | D57: 11.53 | E57: =ROUND(POWER((B57-D57),2),2) -> 60.37 | F57: =ROUND(E57/POWER(C57,2),2) -> 1.1 | G57: =1+G56 -> 3
A58: =A18 -> 0.21 | B58: =B18 -> 24.8 | C58: =C18 -> 6.4 | D58: 14.08 | E58: =ROUND(POWER((B58-D58),2),2) -> 114.92 | F58: =ROUND(E58/POWER(C58,2),2) -> 2.81 | G58: 4
A59: =A19 -> 0.24 | B59: =B19 -> 30 | C59: =C19 -> 7.2 | D59: 15.96 | E59: =ROUND(POWER((B59-D59),2),2) -> 197.12 | F59: =ROUND(E59/POWER(C59,2),2) -> 3.8 | G59: 5
A60: =A20 -> 0.28 | B60: =B20 -> 35 | C60: =C20 -> 7.3 | D60: 18.53 | E60: =ROUND(POWER((B60-D60),2),2) -> 271.26 | F60: =ROUND(E60/POWER(C60,2),2) -> 5.09 | G60: 6
A61: =A21 -> 0.32 | B61: =B21 -> 38.3 | C61: =C21 -> 7.6 | D61: 21.09 | E61: =ROUND(POWER((B61-D61),2),2) -> 296.18 | F61: =ROUND(E61/POWER(C61,2),2) -> 5.13 | G61: 7
A62: =A22 -> 0.35 | B62: =B22 -> 42.7 | C62: =C22 -> 8.8 | D62: 22.95 | E62: =ROUND(POWER((B62-D62),2),2) -> 390.06 | F62: =ROUND(E62/POWER(C62,2),2) -> 5.04 | G62: 8
A63: =A23 -> 0.39 | B63: =B23 -> 47 | C63: =C23 -> 5.3 | D63: 25.5 | E63: =ROUND(POWER((B63-D63),2),2) -> 462.25 | F63: =ROUND(E63/POWER(C63,2),2) -> 16.46 | G63: 9
A64: =A24 -> 0.42 | B64: =B24 -> 49.8 | C64: =C24 -> 5.6 | D64: 27.38 | E64: =ROUND(POWER((B64-D64),2),2) -> 502.66 | F64: =ROUND(E64/POWER(C64,2),2) -> 16.03 | G64: 10
A65: =A25 -> 0.46 | B65: =B25 -> 52.2 | C65: =C25 -> 6.2 | D65: 29.88 | E65: =ROUND(POWER((B65-D65),2),2) -> 498.18 | F65: =ROUND(E65/POWER(C65,2),2) -> 12.96 | G65: 11
A66: =A26 -> 0.49 | B66: =B26 -> 53.4 | C66: =C26 -> 6.3 | D66: 31.79 | E66: =ROUND(POWER((B66-D66),2),2) -> 466.99 | F66: =ROUND(E66/POWER(C66,2),2) -> 11.77 | G66: 12
A67: =A27 -> 0.53 | B67: =B27 -> 54.6 | C67: =C27 -> 5.9 | D67: 34.25 | E67: =ROUND(POWER((B67-D67),2),2) -> 414.12 | F67: =ROUND(E67/POWER(C67,2),2) -> 11.9 | G67: 13
A68: =A28 -> 0.56 | B68: 55.5 | C68: 6.9 | D68: =ROUND(G28,2) -> 36.1 | E68: =ROUND(POWER((B68-D68),2),2) -> 376.36 | F68: =ROUND(E68/POWER(C68,2),2) -> 7.91 | G68: 14
A69: =A29 -> 0.6 | B69: 55.9 | C69: 7.5 | D69: =ROUND(G29,2) -> 38.52 | E69: 302.06 | F69: 5.37 | G69: 15
A70: =A30 -> 0.63 | B70: 58.3 | C70: 7.4 | D70: =ROUND(G30,2) -> 40.32 | E70: 323.28 | F70: 5.9 | G70: 16
A71: =A31 -> 0.66 | B71: 59.3 | C71: 6.3 | D71: =ROUND(G31,2) -> 42.08 | E71: 296.53 | F71: 7.47 | G71: 17
A72: =A32 -> 0.7 | B72: 59.5 | C72: 6.7 | D72: =ROUND(G32,2) -> 44.44 | E72: 226.8 | F72: 5.05 | G72: 18
A73: =A33 -> 0.87 | B73: 59.1 | C73: 5.1 | D73: =ROUND(G33,2) -> 54.07 | E73: 25.3 | F73: 0.97 | G73: 19
A74: =A34 -> 1.05 | B74: 62.6 | C74: 5.5 | D74: =ROUND(G34,2) -> 63.5 | E74: 0.81 | F74: 0.03 | G74: 20
A75: =A35 -> 1.22 | B75: 65.6 | C75: 4.8 | D75: =ROUND(G35,2) -> 71.63 | E75: 36.36 | F75: 1.58 | G75: 21
A76: =A36 -> 1.4 | B76: 70.7 | C76: 4.6 | D76: =ROUND(G36,2) -> 79.35 | E76: 74.82 | F76: 3.54 | G76: 22
A77: =A37 -> 1.57 | B77: 73.9 | C77: 4 | D77: =ROUND(G37,2) -> 85.75 | E77: 140.42 | F77: 8.78 | G77: 23
A78: =A38 -> 1.75 | B78: 78.5 | C78: 4.2 | D78: =ROUND(G38,2) -> 91.6 | E78: 171.61 | F78: 9.73 | G78: 24
A79: =A39 -> 1.92 | B79: 82.4 | C79: 4.6 | D79: =ROUND(G39,2) -> 96.25 | E79: 191.82 | F79: 9.07 | G79: 25
A80: =A40 -> 2.1 | B80: 87.1 | C80: 4.9 | D80: =ROUND(G40,2) -> 100.29 | E80: 173.98 | F80: 7.25 | G80: 26
A81: =A41 -> 2.27 | B81: 89.6 | C81: 5.4 | D81: =ROUND(G41,2) -> 103.32 | E81: 188.24 | F81: 6.46 | G81: 27
A82: =A42 -> 2.45 | B82: 94.9 | C82: 5.7 | D82: =ROUND(G42,2) -> 105.75 | E82: 117.72 | F82: 3.62 | G82: 28
A83: =A43 -> 2.62 | B83: 98.1 | C83: 5 | D83: =ROUND(G43,2) -> 107.38 | E83: 86.12 | F83: 3.44 | G83: 29
A84: =A44 -> 2.79 | B84: 99.3 | C84: 5.7 | D84: =ROUND(G44,2) -> 108.44 | E84: 83.54 | F84: 2.57 | G84: 30
A85: =A45 -> 2.97 | B85: 98.6 | C85: 7.2 | D85: =ROUND(G45,2) -> 109.02 | E85: 108.58 | F85: 2.09 | G85: 31
A86: =A46 -> 3.16 | B86: 101 | C86: 8.7 | D86: =ROUND(G46,2) -> 109.12 | E86: 65.93 | F86: 0.87 | G86: 32
A87: =A47 -> 3.33 | B87: 103 | C87: 9.4 | D87: =ROUND(G47,2) -> 108.82 | E87: 33.87 | F87: 0.38 | G87: 33
A88: =A48 -> 3.51 | B88: 107 | C88: 9.1 | D88: =ROUND(G48,2) -> 108.19 | E88: 1.42 | F88: 0.02 | G88: 34
A89: =A49 -> 3.68 | B89: 114 | C89: 7.4 | D89: =ROUND(G49,2) -> 107.35 | E89: 44.22 | F89: 0.81 | G89: 35
A90: 3.85 | B90: 112 | C90: 8.1 | D90: =ROUND(G50,2) -> 106.33 | E90: =ROUND(POWER((B90-D90),2),2) -> 32.15 | F90: =ROUND(E90/POWER(C90,2),2) -> 0.49 | G90: 36
E91: X^2/d_f= | F91: =ROUND(SUM(F55:F90)/(COUNT(F55:F90)),2) -> 5.19

Sheet Integrale
H1: u | I1: I(u) = Integrale de 0 à u de ( x^2sech^8(x)dx
H2: 0 | I2: 0
H3: 0.01 | I3: 4.998e-07
H4: 0.02 | I4: 2.9964e-06
H5: 0.03 | I5: 9.477e-06
H6: 0.04 | I6: 2.19098e-05
H7: 0.05 | I7: 4.22345e-05
H8: 0.06 | I8: 7.2353e-05
H9: 0.07 | I9: 0.0001141207
H10: 0.08 | I10: 0.0001693376
H11: 0.09 | I11: 0.0002397401
H12: 0.1 | I12: 0.0003269934
H13: 0.11 | I13: 0.0004326832
H14: 0.12 | I14: 0.0005583096
H15: 0.13 | I15: 0.0007052805
H16: 0.14 | I16: 0.0008749055
H17: 0.15 | I17: 0.0010683906
H18: 0.16 | I18: 0.001286834
H19: 0.17 | I19: 0.001531222
H20: 0.18 | I20: 0.0018024255
H21: 0.19 | I21: 0.0021011974
H22: 0.2 | I22: 0.0024281708
H23: 0.21 | I23: 0.0027838579
H24: 0.22 | I24: 0.0031686489
H25: 0.23 | I25: 0.0035828125
H26: 0.24 | I26: 0.0040264964
H27: 0.25 | I27: 0.0044997288
H28: 0.26 | I28: 0.0050024204
H29: 0.27 | I29: 0.0055343666
H30: 0.28 | I30: 0.006095251
H31: 0.29 | I31: 0.0066846487
H32: 0.3 | I32: 0.0073020305
H33: 0.31 | I33: 0.0079467677
H34: 0.32 | I34: 0.0086181365
H35: 0.33 | I35: 0.0093153237
H36: 0.34 | I36: 0.010037432
H37: 0.35 | I37: 0.0107834863
H38: 0.36 | I38: 0.0115524392
H39: 0.37 | I39: 0.0123431779
H40: 0.38 | I40: 0.0131545302
H41: 0.39 | I41: 0.0139852712
H42: 0.4 | I42: 0.0148341297
H43: 0.41 | I43: 0.0156997951
H44: 0.42 | I44: 0.0165809236
H45: 0.43 | I45: 0.0174761447
H46: 0.44 | I46: 0.0183840679
H47: 0.45 | I47: 0.0193032886
H48: 0.46 | I48: 0.0202323944
H49: 0.47 | I49: 0.0211699709
H50: 0.48 | I50: 0.0221146072
H51: 0.49 | I51: 0.0230649017
H52: 0.5 | I52: 0.0240194669
H53: 0.51 | I53: 0.0249769344
H54: 0.52 | I54: 0.0259359595
H55: 0.53 | I55: 0.0268952255
H56: 0.54 | I56: 0.0278534477
H57: 0.55 | I57: 0.0288093767
H58: 0.56 | I58: 0.0297618021
H59: 0.57 | I59: 0.0307095554
H60: 0.58 | I60: 0.0316515125
H61: 0.59 | I61: 0.0325865959
H62: 0.6 | I62: 0.0335137772
H63: 0.61 | I63: 0.0344320783
H64: 0.62 | I64: 0.0353405729
H65: 0.63 | I65: 0.0362383877
H66: 0.64 | I66: 0.037124703
H67: 0.65 | I67: 0.0379987533
H68: 0.66 | I68: 0.0388598276
H69: 0.67 | I69: 0.0397072693
H70: 0.68 | I70: 0.040540476
H71: 0.69 | I71: 0.0413588991
H72: 0.7 | I72: 0.0421620429
H73: 0.71 | I73: 0.0429494641
H74: 0.72 | I74: 0.0437207705
H75: 0.73 | I75: 0.04447562
H76: 0.74 | I76: 0.0452137189
H77: 0.75 | I77: 0.0459348212
H78: 0.76 | I78: 0.0466387261
H79: 0.77 | I79: 0.0473252771
H80: 0.78 | I80: 0.0479943599
H81: 0.79 | I81: 0.0486459007
H82: 0.8 | I82: 0.0492798642
H83: 0.81 | I83: 0.0498962518
H84: 0.82 | I84: 0.0504950998
H85: 0.83 | I85: 0.0510764772
H86: 0.84 | I86: 0.0516404838
H87: 0.85 | I87: 0.0521872484
H88: 0.86 | I88: 0.0527169267
H89: 0.87 | I89: 0.0532296993
H90: 0.88 | I90: 0.0537257701
H91: 0.89 | I91: 0.0542053641
H92: 0.9 | I92: 0.0546687257
H93: 0.91 | I93: 0.0551161169
H94: 0.92 | I94: 0.0555478158
H95: 0.93 | I95: 0.0559641145
H96: 0.94 | I96: 0.0563653178
H97: 0.95 | I97: 0.0567517415
H98: 0.96 | I98: 0.0571237109
H99: 0.97 | I99: 0.0574815594
H100: 0.98 | I100: 0.0578256274
H101: 0.99 | I101: 0.0581562605
H102: 1 | I102: 0.0584738086
H103: 1.01 | I103: 0.0587786248
H104: 1.02 | I104: 0.059071064
H105: 1.03 | I105: 0.0593514822
H106: 1.04 | I106: 0.0596202355
H107: 1.05 | I107: 0.0598776791
H108: 1.06 | I108: 0.0601241663
H109: 1.07 | I109: 0.0603600483
H110: 1.08 | I110: 0.060585673
H111: 1.09 | I111: 0.0608013846
H112: 1.1 | I112: 0.0610075229
H113: 1.11 | I113: 0.0612044228
H114: 1.12 | I114: 0.0613924139
H115: 1.13 | I115: 0.0615718202
H116: 1.14 | I116: 0.0617429593
H117: 1.15 | I117: 0.0619061425
H118: 1.16 | I118: 0.0620616744
H119: 1.17 | I119: 0.0622098525
H120: 1.18 | I120: 0.0623509673
H121: 1.19 | I121: 0.0624853017
H122: 1.2 | I122: 0.0626131314
H123: 1.21 | I123: 0.0627347243
H124: 1.22 | I124: 0.0628503409
H125: 1.23 | I125: 0.0629602337
H126: 1.24 | I126: 0.0630646479
H127: 1.25 | I127: 0.0631638207
H128: 1.26 | I128: 0.0632579818
H129: 1.27 | I129: 0.0633473531
H130: 1.28 | I130: 0.0634321492
H131: 1.29 | I131: 0.0635125771
H132: 1.3 | I132: 0.0635888365
H133: 1.31 | I133: 0.0636611197
H134: 1.32 | I134: 0.0637296121
H135: 1.33 | I135: 0.0637944919
H136: 1.34 | I136: 0.0638559305
H137: 1.35 | I137: 0.0639140927
H138: 1.36 | I138: 0.0639691366
H139: 1.37 | I139: 0.064021214
H140: 1.38 | I140: 0.0640704704
H141: 1.39 | I141: 0.0641170452
H142: 1.4 | I142: 0.064161072
H143: 1.41 | I143: 0.0642026787
H144: 1.42 | I144: 0.0642419876
H145: 1.43 | I145: 0.0642791157
H146: 1.44 | I146: 0.0643141746
H147: 1.45 | I147: 0.064347271
H148: 1.46 | I148: 0.064378507
H149: 1.47 | I149: 0.0644079795
H150: 1.48 | I150: 0.0644357814
H151: 1.49 | I151: 0.0644620009
H152: 1.5 | I152: 0.0644867222
H153: 1.51 | I153: 0.0645100253
H154: 1.52 | I154: 0.0645319867
H155: 1.53 | I155: 0.0645526787
H156: 1.54 | I156: 0.0645721705
H157: 1.55 | I157: 0.0645905275
H158: 1.56 | I158: 0.0646078121
H159: 1.57 | I159: 0.0646240835
H160: 1.58 | I160: 0.0646393978
H161: 1.59 | I161: 0.0646538084
H162: 1.6 | I162: 0.0646673658
H163: 1.61 | I163: 0.064680118
H164: 1.62 | I164: 0.0646921104
H165: 1.63 | I165: 0.0647033862
H166: 1.64 | I166: 0.0647139861
H167: 1.65 | I167: 0.0647239487
H168: 1.66 | I168: 0.0647333107
H169: 1.67 | I169: 0.0647421067
H170: 1.68 | I170: 0.0647503694
H171: 1.69 | I171: 0.0647581297
H172: 1.7 | I172: 0.064765417
H173: 1.71 | I173: 0.064772259
H174: 1.72 | I174: 0.0647786817
H175: 1.73 | I175: 0.0647847098
H176: 1.74 | I176: 0.0647903667
H177: 1.75 | I177: 0.0647956744
H178: 1.76 | I178: 0.0648006536
H179: 1.77 | I179: 0.064805324
H180: 1.78 | I180: 0.0648097041
H181: 1.79 | I181: 0.0648138112
H182: 1.8 | I182: 0.0648176618
H183: 1.81 | I183: 0.0648212714
H184: 1.82 | I184: 0.0648246547
H185: 1.83 | I185: 0.0648278252
H186: 1.84 | I186: 0.0648307961
H187: 1.85 | I187: 0.0648335795
H188: 1.86 | I188: 0.0648361869
H189: 1.87 | I189: 0.0648386291
H190: 1.88 | I190: 0.0648409162
H191: 1.89 | I191: 0.0648430578
H192: 1.9 | I192: 0.064845063
H193: 1.91 | I193: 0.0648469402
H194: 1.92 | I194: 0.0648486973
H195: 1.93 | I195: 0.0648503418
H196: 1.94 | I196: 0.0648518808
H197: 1.95 | I197: 0.0648533208
H198: 1.96 | I198: 0.0648546681
H199: 1.97 | I199: 0.0648559285
H200: 1.98 | I200: 0.0648571074
... 172 more rows

Sheet Feuil3
